bitfinex-derivatives/quotes_ETHF0:USTF0_20260102
["timestamp","ask_amount","ask_price","bid_price","bid_amount"]
[1767346971829,0.40356661,3040.8,3039.3,4.704]
[1767346972732,0.40356661,3040.8,3039.3,5.09925201]
[1767346973825,0.40356661,3041.5,3039.5,0.39525201]
[1767346974337,0.40356661,3041.5,3039.6,4.73528368]
[1767346974528,0.40356661,3041.5,3039.8,0.16469]
[1767346975040,0.40717989,3041.5,3039.8,0.16469]
[1767346975531,0.40717989,3041.5,3039.8,0.55994201]
[1767346979232,0.40717989,3041.5,3040.0,0.16468]
[1767346980438,0.40717989,3041.5,3040.0,0.56053222]
[1767346980638,0.40717989,3041.5,3040.1,0.39585222]
[1767346981339,0.40717989,3041.5,3040.1,0.56052222]
[1767346981836,0.40717989,3041.5,3040.2,4.707]
[1767346982039,0.40717989,3041.5,3040.5,0.00493437]
[1767346983842,0.00361328,3041.5,3040.5,0.00493437]
[1767346985234,0.00361328,3041.5,3040.5,4.71193437]
[1767346987641,0.00361328,3041.5,3040.5,0.00493437]
[1767346987841,0.00361328,3041.5,3040.6,0.329]
[1767346988340,0.00361328,3041.5,3040.5,4.71393437]
[1767346991139,0.00361328,3041.5,3040.5,0.00493437]
[1767346991340,0.00361328,3041.5,3040.6,4.713]
[1767347002343,0.00361328,3041.5,3040.5,0.00493437]
[1767347002543,0.00361328,3041.5,3040.7,4.732]
[1767347003342,0.00361328,3041.5,3040.5,0.00493437]
[1767347003543,0.00361328,3041.5,3040.6,4.736]
[1767347004451,0.38002103,3042.1,3040.6,5.13185222]
[1767347004750,0.38002103,3042.1,3040.6,9.20180552]
[1767347005454,0.38283076,3042.1,3040.6,9.20180552]
[1767347010158,0.54740076,3042.1,3040.6,4.0699533]
[1767347010455,0.38782931,3042.0,3040.7,4.756]
[1767347012959,0.38782931,3042.0,3040.8,4.766]
[1767347015460,0.38782931,3042.0,3040.9,4.775]
[1767347015657,0.38782931,3042.0,3040.9,4.77908668]
[1767347017162,0.16459,3041.7,3040.6,4.0699533]
[1767347017362,0.38782931,3041.6,3040.5,4.78193437]
[1767347018258,0.38782931,3041.6,3040.5,4.78551105]
[1767347018564,0.38782931,3041.6,3040.6,4.779]
[1767347020062,0.38782931,3041.6,3040.5,0.00851105]
[1767347020357,0.38782931,3042.0,3040.6,4.779]
[1767347022166,0.38782931,3042.0,3040.5,0.00851105]
[1767347022365,0.38782931,3042.0,3040.6,4.779]
[1767347022965,0.38782931,3042.0,3040.7,4.778]
[1767347023166,0.38782931,3042.0,3040.5,0.00851105]
[1767347023370,0.38782931,3042.0,3040.6,4.778]
[1767347025366,0.38782931,3042.0,3040.5,0.00851105]
[1767347025561,0.38782931,3042.0,3040.6,4.778]
[1767347026364,0.38782931,3042.0,3040.6,5.13473687]
[1767347030067,0.38782931,3042.0,3040.7,4.777]
[1767347030858,0.38782931,3042.0,3040.5,4.07846435]
[1767347031060,0.38782931,3042.0,3040.5,0.00851105]
[1767347031261,0.00280973,3042.1,3040.6,4.60951978]
[1767347031464,0.00280973,3042.1,3040.8,4.0699533]
[1767347031760,0.00280973,3042.1,3040.8,4.42669017]
[1767347031965,0.00280973,3042.1,3040.8,4.59132017]
[1767347032269,0.00280973,3042.1,3040.9,0.35673687]
[1767347036768,0.37255074,3043.5,3040.9,0.35673687]
[1767347036969,0.37255074,3042.9,3041.3,0.16461]
[1767347037174,0.37255074,3042.9,3041.8,0.00493437]
[1767347037964,0.37564117,3042.9,3041.8,0.00493437]
[1767347042474,0.37255074,3042.2,3040.6,0.16465]
[1767347042669,0.37255074,3042.2,3040.7,0.34839133]
[1767347042869,0.37255074,3042.2,3040.7,0.51303133]
[1767347043482,0.00493437,3041.8,3041.1,0.00493437]
[1767347047684,0.37255074,3042.6,3041.2,4.20239189]
[1767347047886,0.37255074,3042.6,3041.3,4.775]
[1767347048587,0.37255074,3042.6,3041.1,0.5179457]
[1767347048787,0.37255074,3042.6,3041.4,4.775]
[1767347052392,0.53709074,3042.6,3041.1,0.00493437]
[1767347052686,0.37255074,3042.5,3041.1,0.00493437]
[1767347059202,0.37255074,3042.5,3041.2,4.775]
[1767347059396,0.37255074,3042.5,3041.1,0.00493437]
[1767347059601,0.37255074,3042.5,3041.2,4.775]
[1767347062395,0.37255074,3042.5,3041.3,4.774]
[1767347062796,0.37255074,3042.5,3041.1,0.00493437]
[1767347063101,0.37255074,3042.5,3041.2,4.774]
[1767347063493,0.37255074,3042.5,3041.1,0.00493437]
[1767347063693,0.37255074,3042.5,3041.2,4.774]
[1767347064499,0.37255074,3042.5,3041.1,0.00493437]
[1767347064695,0.37255074,3042.5,3041.2,4.774]
[1767347065803,0.37255074,3042.5,3041.1,0.00493437]
[1767347066002,0.37255074,3042.5,3041.2,4.774]
[1767347068112,0.36992055,3042.8,3041.2,5.13311626]
[1767347068907,0.36992055,3042.8,3041.3,4.93761]
[1767347069713,0.36992055,3042.8,3041.3,0.16461]
[1767347069913,0.36992055,3042.8,3041.4,3.922]
[1767347072807,0.00309043,3042.9,3041.5,0.35911626]
[1767347073011,0.00309043,3042.9,3041.5,4.73065242]
[1767347073206,0.00309043,3042.9,3041.6,4.772]
[1767347074806,0.37301098,3042.9,3041.6,4.772]
[1767347076410,0.00309043,3042.9,3041.7,0.35911626]
[1767347076610,0.00309043,3042.9,3041.8,4.772]
[1767347076818,0.37301098,3042.9,3041.8,4.772]
[1767347077410,0.37301098,3042.9,3041.4,0.1646]
[1767347077609,0.37301098,3042.9,3041.5,4.772]
[1767347077806,0.37301098,3042.9,3041.4,0.1646]
[1767347078012,0.37301098,3042.9,3041.5,4.772]
[1767347078212,0.37301098,3042.9,3041.4,0.1646]
[1767347078619,0.37301098,3042.9,3041.5,4.772]
[1767347083119,0.37301098,3042.9,3041.4,0.1646]
[1767347083322,0.37301098,3042.9,3041.6,4.77]
[1767347084219,0.37301098,3042.9,3041.4,0.1646]
[1767347084425,0.37301098,3042.9,3041.5,4.771]
[1767347087431,0.37301098,3042.9,3041.4,0.52371626]
[1767347087732,0.37301098,3042.9,3041.5,4.772]
[1767347089831,0.37301098,3042.9,3041.5,5.13111626]
[1767347091029,0.37301098,3042.9,3041.5,0.35911626]
[1767347091330,0.37301098,3042.9,3041.6,4.774]
[1767347091832,0.00309043,3042.9,3041.6,5.13311626]
[1767347092424,0.37301098,3042.9,3041.6,4.774]
[1767347092728,0.37301098,3042.9,3041.7,4.775]
[1767347093931,0.37301098,3042.9,3041.4,0.1646]
[1767347094132,0.37301098,3042.9,3041.5,4.777]
[1767347095029,0.36992055,3044.0,3041.7,0.16459]
[1767347095233,0.36992055,3044.0,3042.5,0.00493437]
[1767347095431,0.36992055,3043.5,3042.5,0.00493437]
[1767347095634,0.36992055,3043.9,3042.5,0.00493437]
[1767347096027,0.00248523,3043.9,3042.6,3.53898488]
[1767347096333,0.34440027,3044.6,3042.7,0.37498488]
[1767347096630,0.34440027,3044.3,3042.8,4.777]
[1767347096935,0.34440027,3044.3,3042.5,0.00493437]
[1767347097129,0.34818755,3044.3,3042.6,4.777]
[1767347097433,0.00378728,3044.3,3043.1,0.53949488]
[1767347097633,0.3773541,3045.0,3043.2,0.37498488]
[1767347098230,0.34440027,3044.9,3043.2,0.37498488]
[1767347098439,0.34440027,3044.9,3043.3,3.579]
[1767347098631,0.3773541,3045.0,3043.4,0.37498488]
[1767347098827,0.00258058,3044.9,3043.5,0.16449]
[1767347099130,0.00055928,3045.0,3043.7,0.00840095]
[1767347099328,0.00055928,3045.0,3044.0,0.00493437]
[1767347099529,0.00055928,3045.0,3044.1,4.776]
[1767347099723,0.00055928,3045.0,3044.1,9.1099666]
[1767347099935,0.0040427,3045.0,3044.1,4.3339666]
[1767347100330,0.34844297,3045.0,3044.0,0.00493437]
[1767347101223,0.34440027,3044.7,3042.9,11.17693461]
[1767347101537,0.34440027,3044.5,3042.9,15.95293461]
[1767347102035,0.34440027,3044.5,3043.0,9.03842065]
[1767347102235,0.34440027,3044.5,3043.4,0.00493437]
[1767347102636,0.34440027,3044.5,3043.5,4.779]
[1767347102841,0.34844297,3045.0,3043.5,9.04042065]
[1767347103241,0.16438,3045.6,3043.5,4.26717189]
[1767347103242,0.34440027,3045.5,3043.5,4.26717189]
[1767347103536,0.34440027,3045.5,3043.7,0.16448]
[1767347103737,0.34440027,3045.5,3043.8,0.16447]
[1767347103934,0.34440027,3046.2,3044.0,0.16446]
[1767347104235,0.34440027,3046.2,3044.1,4.23545125]
[1767347104236,0.34695465,3046.2,3044.1,4.23545125]
[1767347104636,0.34695465,3046.2,3044.2,8.069]
[1767347104938,0.34440027,3045.4,3043.5,1.43436183]
[1767347105143,0.34440027,3045.4,3043.9,4.781]
[1767347105826,0.34440027,3045.4,3044.0,4.781]
[1767347106433,0.34440027,3045.4,3044.1,4.25969597]
[1767347106630,0.34440027,3046.1,3044.1,4.25969597]
[1767347107036,0.34440027,3046.0,3044.1,4.25969597]
[1767347107234,0.34440027,3046.0,3044.1,5.68689539]
[1767347107738,0.34440027,3046.0,3044.1,5.85135539]
[1767347108133,0.34440027,3046.0,3044.2,8.069]
[1767347108534,0.34440027,3046.0,3044.3,4.22731385]
[1767347108929,0.34440027,3046.0,3044.4,4.783]
[1767347109328,0.34440027,3046.0,3044.5,4.29712911]
[1767347109539,0.00255438,3046.2,3044.9,0.00492602]
[1767347109837,0.00255438,3046.2,3044.9,0.17198037]
[1767347110034,0.50869027,3047.2,3045.1,0.00587101]
[1767347110233,0.34440027,3047.1,3045.8,0.00492602]
[1767347110440,0.34440027,3047.1,3045.8,4.78892602]
[1767347110939,0.34735699,3047.1,3045.8,4.78892602]
[1767347111544,0.34735699,3047.1,3045.8,0.00492602]
[1767347111743,0.34735699,3047.1,3045.9,0.991]
[1767347111938,0.34440027,3046.7,3045.8,0.00492602]
[1767347112243,0.34440027,3046.5,3045.8,0.00492602]
[1767347112835,0.50873027,3046.5,3044.9,0.00264435]
[1767347113037,0.34440027,3046.4,3044.9,0.00264435]
[1767347113244,0.34440027,3046.2,3044.9,0.00264435]
[1767347113739,0.34440027,3046.1,3044.9,0.00264435]
[1767347113935,0.34440027,3045.8,3045.2,0.00244079]
[1767347114135,0.34440027,3045.8,3044.9,0.00264435]
[1767347115143,0.34440027,3045.8,3045.0,0.00492602]
[1767347118744,0.16437,3045.8,3045.0,0.00492602]
[1767347118940,0.34440027,3045.7,3045.0,0.00492602]
[1767347119849,0.34440027,3045.7,3044.9,0.00264435]
[1767347120245,0.34440027,3045.5,3043.5,0.86668343]
[1767347120453,0.0048982,3045.9,3043.5,0.86668343]
[1767347120454,0.34440027,3045.3,3043.6,3.286]
[1767347120646,0.34440027,3045.3,3043.6,4.24417889]
[1767347120956,0.34440027,3045.3,3044.1,0.00492602]
[1767347121356,0.34440027,3045.3,3044.1,0.00778482]
[1767347122158,0.34440027,3045.8,3044.1,0.00778482]
[1767347122359,0.50877027,3045.8,3044.1,0.00778482]
[1767347122559,0.50877027,3045.7,3044.1,0.00778482]
[1767347122754,0.50878027,3045.6,3044.1,0.00778482]
[1767347122956,0.34440027,3045.4,3044.1,0.00778482]
[1767347123458,0.50879027,3045.4,3044.1,0.00778482]
[1767347123656,0.34440027,3045.3,3044.1,0.00778482]
[1767347126961,0.50879027,3045.3,3044.1,0.00778482]
[1767347127163,0.34358564,3045.2,3044.1,0.00778482]
[1767347131760,0.34358564,3045.7,3044.1,0.00778482]
[1767347132269,0.34358564,3045.6,3044.1,0.00778482]
[1767347134070,0.50796564,3045.6,3044.1,0.00778482]
[1767347134270,0.34358564,3045.5,3044.1,0.00778482]
[1767347135570,0.34358564,3045.4,3044.1,0.00778482]
[1767347135965,0.50798564,3045.3,3044.1,0.00778482]
[1767347136160,0.34358564,3045.2,3044.1,0.00778482]
[1767347137073,0.34358564,3045.0,3044.1,0.00778482]
[1767347139463,0.34358564,3045.0,3043.2,0.1645]
[1767347139677,0.34358564,3044.9,3043.2,0.1645]
[1767347140571,0.00492602,3044.4,3043.7,0.00492602]
[1767347141671,0.34851166,3044.4,3043.7,0.00492602]
[1767347145077,0.34851166,3044.4,3043.2,0.00299986]
[1767347145978,0.34851166,3044.4,3043.5,0.00492602]
[1767347149379,0.34851166,3044.4,3043.2,0.00299986]
[1767347150379,0.34851166,3044.4,3043.5,0.00331188]
[1767347152679,0.34851166,3044.4,3043.2,0.00299986]
[1767347152869,0.34358564,3044.1,3043.2,0.00299986]
[1767347156382,0.34358564,3044.1,3042.4,0.16454]
[1767347157382,0.34358564,3044.1,3042.4,0.16795128]
[1767347161991,0.35565918,3044.0,3042.4,4.94595128]
[1767347162491,0.35565918,3043.9,3042.4,0.16795128]
[1767347166688,0.35565918,3043.9,3042.5,0.16454]
[1767347166893,0.00492602,3044.4,3043.0,0.16451]
[1767347166894,0.35565918,3044.3,3043.0,0.16451]
[1767347168893,0.35565918,3044.3,3043.0,4.94151]
[1767347169493,0.35565918,3044.3,3043.1,0.16451]
[1767347169687,0.00492602,3044.4,3043.2,0.1645]
[1767347170091,0.00492602,3044.4,3043.3,4.25765034]
[1767347172291,0.00492602,3044.4,3043.2,4.9425]
[1767347172292,0.3605852,3044.4,3043.2,4.9425]
[1767347173301,0.00492602,3044.4,3043.3,4.44069669]
[1767347175197,0.00492602,3044.4,3043.4,0.16449]
[1767347175597,0.00321497,3044.9,3043.5,4.35302304]
[1767347175892,0.00321497,3044.9,3043.9,0.16447]
[1767347176197,0.00321497,3044.9,3043.5,3.294]
[1767347176198,0.35565918,3045.9,3044.2,0.16445]
[1767347176394,0.35565918,3045.9,3044.3,0.16444]
[1767347176801,0.00492602,3045.4,3044.8,0.00492601]
[1767347177097,0.00426448,3045.4,3044.8,0.00751213]
[1767347177599,0.35992366,3045.4,3043.9,4.782]
[1767347177802,0.35565918,3045.3,3043.7,0.16448]
[1767347177999,0.35565918,3045.3,3043.1,4.0699533]
[1767347178000,0.35565918,3045.3,3043.1,4.2344633]
[1767347178199,0.35565918,3045.3,3043.1,0.16451]
[1767347178398,0.35565918,3044.9,3043.2,4.782]
[1767347178595,0.00492602,3044.5,3043.9,0.00492602]
[1767347178796,0.3605852,3044.5,3043.9,0.00492602]
[1767347179996,0.3605852,3044.5,3043.2,4.782]
[1767347180202,0.3605852,3044.5,3043.1,0.16750156]
[1767347180503,0.3605852,3044.5,3043.1,4.94850156]
[1767347181099,0.3605852,3044.5,3043.1,4.78399156]
[1767347181503,0.3605852,3044.5,3043.1,0.00299156]
[1767347184798,0.3605852,3044.5,3043.1,0.16750156]
[1767347185097,0.3605852,3044.5,3043.2,4.3182119]
[1767347186205,0.00492602,3044.5,3043.2,4.4827119]
[1767347186503,0.35996704,3044.5,3043.2,4.4827119]
[1767347187109,0.35996704,3044.5,3043.1,0.00299156]
[1767347187309,0.35996704,3044.5,3043.1,4.78599156]
[1767347187501,0.35504102,3044.3,3043.1,0.00299156]
[1767347187698,0.35504102,3044.1,3043.1,0.00299156]
[1767347188003,0.35504102,3044.1,3042.5,4.783]
[1767347188401,0.35504102,3044.1,3042.4,9.06737244]
[1767347188707,0.35504102,3044.1,3042.4,4.784]
[1767347188902,0.35504102,3043.8,3042.4,0.0041791]
[1767347189108,0.35504102,3043.7,3042.4,0.0041791]
[1767347189298,0.51952102,3043.7,3042.4,0.0041791]
[1767347189500,0.35504102,3043.6,3042.4,0.0041791]
[1767347190099,0.35504102,3043.6,3041.5,0.1646]
[1767347190299,0.35504102,3042.8,3041.6,4.786]
[1767347190501,0.35504102,3042.8,3041.6,9.1440916]
[1767347190707,0.35504102,3042.8,3041.5,0.1646]
[1767347190909,0.35504102,3042.8,3041.6,4.787]
[1767347191103,0.35735502,3042.8,3041.6,4.787]
[1767347191308,0.35735502,3042.8,3041.6,4.78972428]
[1767347192406,0.35735502,3042.8,3041.6,0.00272428]
[1767347211017,0.35504102,3042.7,3041.6,0.00272428]
[1767347214428,0.35504102,3042.6,3040.8,0.16463]
[1767347215529,0.35504102,3042.6,3040.8,0.16873479]
[1767347218722,0.34253643,3042.5,3040.8,0.16873479]
[1767347219123,0.34253643,3042.4,3040.8,0.16873479]
[1767347219329,0.34253643,3042.3,3040.8,0.16873479]
[1767347220321,0.34253643,3042.3,3040.5,3.289]
[1767347220322,0.34253643,3041.9,3039.8,8.8589533]
[1767347220518,0.00492602,3041.2,3040.4,0.16466]
[1767347220714,0.34253643,3041.9,3040.4,0.16466]
[1767347221122,0.34253643,3041.9,3040.5,4.34863132]
[1767347221326,0.34253643,3042.4,3040.6,4.79]
[1767347221719,0.00492602,3041.8,3041.2,0.00492602]
[1767347221918,0.34253643,3042.4,3041.2,0.00492602]
[1767347223027,0.00492602,3042.1,3041.2,0.00492602]
[1767347226425,0.34746245,3042.1,3041.2,0.00492602]
[1767347231522,0.34746245,3042.1,3040.6,0.16465]
[1767347232530,0.34746245,3042.1,3041.0,0.00492602]
[1767347248946,0.00492602,3042.1,3041.1,0.16462]
[1767347250035,0.00492602,3042.1,3041.3,0.16461]
[1767347250036,1e-08,3042.1,3041.3,0.16461]
[1767347250237,0.30762735,3042.8,3041.4,4.784]
[1767347251347,0.00492602,3042.4,3041.4,4.784]
[1767347252042,1e-08,3042.4,3041.5,4.28208417]
[1767347252640,0.30762735,3042.8,3041.5,4.28208417]
[1767347253044,0.30762735,3042.8,3041.5,4.44668417]
[1767347253240,0.30762735,3042.8,3041.6,0.16459]
[1767347253640,0.00492602,3042.5,3041.6,0.16459]
[1767347253835,0.30531335,3043.2,3041.7,4.34085287]
[1767347254150,0.30531335,3044.2,3042.1,0.16456]
[1767347254339,0.46976335,3044.2,3042.2,4.791]
[1767347254540,0.30531335,3044.1,3042.2,4.791]
[1767347254841,0.31023937,3043.5,3042.8,0.00492602]
[1767347255138,0.31023937,3043.5,3042.8,0.00836553]
[1767347260453,0.31023937,3043.5,3042.2,4.95356]
[1767347260454,0.31023937,3043.5,3042.2,0.16456]
[1767347261551,0.00492602,3043.5,3042.5,0.00492602]
[1767347265746,0.00492602,3043.5,3042.6,4.22667614]
[1767347267853,1e-08,3043.5,3042.6,4.22667614]
[1767347270455,1e-08,3043.5,3042.6,4.49253219]
[1767347271755,1e-08,3043.5,3042.6,4.65707219]
[1767347271952,0.30531335,3043.9,3042.6,4.49253219]
[1767347272254,0.00384994,3044.1,3042.6,4.49253219]
[1767347272954,0.00492602,3043.7,3042.6,4.49253219]
[1767347273351,0.00384994,3044.1,3042.7,0.19703973]
[1767347273652,0.00384994,3044.1,3043.0,0.16452]
[1767347274052,0.00384994,3044.1,3043.1,4.801]
[1767347274053,0.30916329,3044.1,3043.1,4.801]
[1767347274557,0.00492602,3043.9,3043.1,4.801]
[1767347275151,0.00492602,3043.9,3043.0,0.16452]
[1767347275451,0.31023937,3043.9,3042.8,2.79]
[1767347277755,0.31023937,3043.9,3042.8,4.8]
[1767347278159,0.31023937,3043.9,3042.5,0.16946602]
[1767347278355,0.31023937,3043.9,3042.5,3.27446602]
[1767347279159,0.31023937,3043.9,3042.5,3.10992602]
[1767347279368,0.31023937,3043.9,3042.5,0.00492602]
[1767347283458,0.31023937,3043.9,3042.6,4.27955749]
[1767347284665,0.31023937,3043.9,3042.8,0.16452]
[1767347287968,9.94e-06,3044.1,3043.1,4.0699533]
[1767347288170,0.3288581,3044.9,3043.7,0.16448]
[1767347288362,0.3288581,3045.7,3043.7,0.16448]
[1767347288669,0.3288581,3045.7,3043.8,4.29245254]
[1767347288865,0.3288581,3045.5,3043.8,4.29245254]
[1767347289069,0.3288581,3044.9,3043.7,4.96448]
[1767347289265,0.3288581,3044.9,3043.7,0.16448]
[1767347289472,0.3288581,3044.9,3043.7,4.96548]
[1767347289776,0.3288581,3044.9,3043.7,0.16448]
[1767347289982,0.3288581,3044.9,3043.7,4.96548]
[1767347290181,0.3288581,3044.9,3044.0,0.00492602]
[1767347290982,0.3288581,3044.9,3043.2,4.194]
[1767347291979,0.3288581,3044.9,3043.7,0.00492602]
[1767347297078,0.4932781,3044.8,3042.8,3.875]
[1767347297274,0.3288581,3044.6,3042.8,3.875]
[1767347297474,0.3288581,3044.6,3042.8,8.1940578]
[1767347298084,0.3288581,3044.6,3043.4,0.00492602]
[1767347298281,0.3288581,3044.5,3043.4,0.00492602]
[1767347298482,0.3288581,3044.4,3042.6,0.16454]
[1767347299774,0.3288581,3044.3,3043.2,0.00492602]
[1767347301384,0.4933081,3044.3,3043.2,0.00492602]
[1767347301787,0.3288581,3044.2,3042.6,0.16454]
[1767347302880,0.3288581,3044.2,3043.1,0.00492602]
[1767347303579,0.3288581,3044.2,3042.3,4.21561206]
[1767347303785,0.4933081,3044.2,3042.3,4.21561206]
[1767347303981,0.3288581,3044.1,3042.3,4.21561206]
[1767347309283,0.3288581,3044.1,3042.3,4.38016206]
[1767347313390,0.4933181,3044.1,3042.3,4.38016206]
[1767347313590,0.3106622,3044.0,3042.3,4.38016206]
[1767347313791,0.00492602,3043.5,3042.3,4.38016206]
[1767347319785,0.31558822,3043.5,3042.3,0.16455]
[1767347319985,0.31558822,3043.5,3042.4,4.832]
[1767347321501,0.31558822,3043.5,3042.2,0.00251175]
[1767347335016,0.00492602,3043.5,3042.3,4.30581199]
[1767347335204,0.00492602,3043.5,3042.3,4.50300333]
[1767347336503,0.00492602,3043.5,3042.5,0.16454]
[1767347336909,0.00492602,3043.5,3042.6,0.16454]
[1767347337209,0.28716915,3044.3,3042.6,4.48777614]
[1767347337412,0.28716915,3044.3,3042.7,4.837]
[1767347337714,0.28716915,3044.3,3042.6,5.00154]
[1767347338016,0.00492602,3043.8,3043.1,0.00492602]
[1767347338207,0.28716915,3043.7,3043.1,0.00492602]
[1767347338811,0.28716915,3043.7,3042.4,4.837]
[1767347341405,0.28716915,3043.7,3042.2,0.00251175]
[1767347345111,0.45164915,3043.7,3042.2,0.00251175]
[1767347345311,0.28716915,3043.6,3042.2,0.00251175]
[1767347349320,0.45164915,3043.6,3042.2,0.00251175]
[1767347349516,0.28716915,3043.5,3042.2,0.00251175]
[1767347359523,0.00492602,3043.8,3042.2,0.16707175]
[1767347359726,0.29209517,3043.8,3042.2,0.16707175]
[1767347360230,0.29209517,3043.8,3042.4,0.16455]
[1767347360522,0.29209517,3043.8,3042.5,4.834]
[1767347360709,0.00492602,3043.8,3042.6,0.16454]
[1767347360914,0.28716915,3044.2,3042.8,0.16453]
[1767347361209,0.28716915,3045.0,3042.9,4.43656728]
[1767347361613,0.28716915,3045.0,3042.9,0.16452]
[1767347362017,0.00492602,3044.3,3043.6,0.00492602]
[1767347362616,0.28716915,3044.8,3043.6,0.00492602]
[1767347363128,0.28716915,3045.4,3043.6,0.00492602]
[1767347363319,0.28716915,3045.4,3043.6,0.16940602]
[1767347363624,0.00492602,3044.8,3043.7,0.16448]
[1767347363823,0.28716915,3045.4,3043.7,0.16448]
[1767347363824,0.28716915,3045.4,3043.7,4.38647622]
[1767347364023,0.28716915,3045.4,3043.8,0.18033417]
[1767347364326,0.28716915,3046.1,3044.2,0.16445]
[1767347364622,0.28716915,3046.1,3044.4,0.18033417]
[1767347364821,0.00492602,3045.6,3044.9,0.16441]
[1767347365126,0.28716915,3047.0,3045.2,0.17534971]
[1767347365518,0.16426,3047.9,3045.4,0.17477473]
[1767347365519,0.30137325,3047.8,3045.4,0.17477473]
[1767347365719,0.30389171,3047.8,3045.6,0.1740146]
[1767347366022,0.30389171,3047.8,3046.4,0.00492602]
[1767347366226,0.30389171,3047.8,3046.4,3.72292602]
[1767347366429,0.43964606,3049.1,3046.6,0.17011474]
[1767347366723,0.43964606,3049.1,3046.5,6.0]
[1767347366724,0.27545606,3049.1,3047.0,0.16937636]
[1767347366928,0.27545606,3049.1,3047.1,0.33366636]
[1767347367224,0.27545606,3049.1,3047.2,3.45129]
[1767347367425,0.2785198,3049.1,3047.8,0.00492602]
[1767347367625,0.27545606,3050.4,3048.1,0.16424]
[1767347367821,0.27545606,3050.4,3048.1,0.33288484]
[1767347368022,0.27545606,3050.4,3048.2,11.04537731]
[1767347368324,0.27545606,3050.1,3048.0,4.832]
[1767347368519,0.27545606,3049.9,3047.8,0.00354199]
[1767347368828,0.27545606,3049.3,3047.8,0.00354199]
[1767347369825,0.27545606,3049.3,3048.2,0.00492602]
[1767347370215,0.00492602,3049.4,3048.2,0.00492602]
[1767347370421,0.28038208,3049.4,3048.2,0.00492602]
[1767347370617,0.00492602,3049.4,3048.3,4.23518301]
[1767347370829,0.00240015,3050.1,3048.7,0.16421]
[1767347371127,0.27545606,3052.0,3049.4,0.17144738]
[1767347371626,0.27545606,3051.9,3049.6,0.17144738]
[1767347371924,0.27545606,3052.4,3049.8,0.17075803]
[1767347372129,0.27893074,3052.4,3050.8,0.00491787]
[1767347372319,0.00347468,3052.4,3050.9,0.17075803]
[1767347372521,0.27545606,3054.8,3051.9,0.17075803]
[1767347372829,0.27545606,3054.8,3052.4,0.17007227]
[1767347373028,0.3,3054.9,3052.6,0.16399]
[1767347373229,0.00491787,3054.1,3053.4,0.00491787]
[1767347373529,0.00491787,3054.1,3053.4,0.00256316]
[1767347373530,0.28282692,3054.1,3053.4,0.00256316]
[1767347373719,0.3,3054.9,3053.5,4.35326464]
[1767347374228,0.27545606,3054.8,3052.1,0.16939417]
[1767347374433,0.27545606,3054.7,3052.0,1.105]
[1767347374618,0.27545606,3054.2,3052.5,4.35326464]
[1767347374815,0.27545606,3053.6,3051.1,4.825]
[1767347375017,0.27545606,3053.6,3049.7,31.10865431]
[1767347375018,0.16399,3052.8,3050.2,4.668]
[1767347375219,0.16401,3052.4,3050.2,0.00303659]
[1767347375420,0.00414235,3052.8,3050.2,0.00303659]
[1767347375421,0.16402,3052.2,3050.2,0.00303659]
[1767347375622,3.28714235,3052.8,3050.3,4.22300269]
[1767347375821,0.00491787,3051.9,3050.2,0.00303659]
[1767347376028,1.503,3051.8,3050.2,0.00303659]
[1767347376236,1.503,3051.8,3049.2,4.824]
[1767347376529,0.16407,3051.3,3049.3,4.20973801]
[1767347376925,0.00491787,3050.6,3050.0,0.00491787]
[1767347377121,0.00491787,3050.6,3049.1,4.23000007]
[1767347377122,0.28037393,3050.6,3048.4,4.597]
[1767347377322,0.28342757,3050.6,3048.5,4.23000007]
[1767347377627,0.28342757,3050.6,3048.4,0.00255727]
[1767347378031,0.27545606,3050.3,3048.4,0.00255727]
[1767347378220,0.27545606,3050.3,3049.0,0.00491787]
[1767347378928,0.00797151,3050.6,3049.0,0.00491787]
[1767347379126,0.00797151,3050.6,3049.1,4.31302103]
[1767347379324,0.00797151,3050.6,3049.0,0.00491787]
[1767347379725,0.00797151,3050.6,3049.1,4.31302103]
[1767347379930,0.00797151,3050.6,3049.1,7.59502103]
[1767347380319,0.00797151,3050.6,3049.1,7.76153709]
[1767347380529,0.27545606,3051.4,3049.2,0.16651606]
[1767347380738,0.27545606,3052.0,3049.6,0.16589435]
[1767347380925,0.16399,3052.8,3049.7,0.16589435]
[1767347380926,0.27545606,3052.6,3049.7,0.16589435]
[1767347381126,0.27545606,3052.6,3049.8,0.16589435]
[1767347381431,0.27545606,3052.6,3050.0,0.16589435]
[1767347381619,0.00491787,3051.5,3050.9,0.00491787]
[1767347381824,0.00491787,3051.5,3050.1,4.20839357]
[1767347382129,0.28037393,3051.5,3048.8,0.16527845]
[1767347382432,0.27545606,3051.0,3049.2,4.20839357]
[1767347382829,0.28037393,3050.4,3049.8,0.00491787]
[1767347383130,0.28322082,3050.4,3049.2,0.0032236]
[1767347383330,0.27545606,3050.3,3049.2,0.0032236]
[1767347383631,0.00776476,3050.4,3049.3,4.35691297]
[1767347383827,2.36393619,3053.4,3049.3,4.35691297]
[1767347383828,0.27545606,3051.7,3049.3,4.35691297]
[1767347384229,0.43945606,3052.6,3050.1,0.16900332]
[1767347384429,0.27545606,3052.4,3050.1,0.16900332]
[1767347384630,0.27545606,3052.2,3050.2,4.22202377]
[1767347384823,0.00491787,3051.5,3050.9,0.00491787]
[1767347385024,0.00491787,3051.5,3049.8,4.823]
[1767347385025,0.28037393,3051.5,3049.8,4.823]
[1767347385336,0.27545606,3051.4,3049.2,0.0032236]
[1767347385536,0.27545606,3051.1,3049.2,4.8262236]
[1767347385831,0.00491787,3051.5,3049.5,4.49086028]
[1767347386036,0.00491787,3051.5,3049.8,0.00491787]
[1767347386232,0.00491787,3051.5,3049.8,0.17275627]
[1767347386533,0.00491787,3051.5,3049.9,4.31715332]
[1767347386737,0.00491787,3051.5,3050.0,8.104]
[1767347387034,0.0036663,3052.2,3050.1,4.50494077]
[1767347387331,0.0036663,3052.2,3050.5,0.16411]
[1767347387536,0.16394,3053.7,3051.1,0.16408]
[1767347387740,0.27545606,3053.6,3051.2,3.722]
[1767347387929,0.27545606,3053.6,3052.1,0.00491787]
[1767347387930,0.00491787,3052.7,3052.1,0.00491787]
[1767347388130,0.3,3054.9,3052.2,4.823]
[1767347388131,0.27545606,3054.4,3052.2,4.823]
[1767347388330,0.3,3054.9,3052.2,4.823]
[1767347388331,0.3,3054.9,3052.3,0.15686801]
[1767347388531,0.30382362,3054.9,3052.5,0.15686801]
[1767347388833,0.30382362,3054.9,3052.6,9.25385377]
[1767347389042,0.30382362,3054.9,3052.7,0.16399]
[1767347389244,0.30382362,3054.9,3052.6,12.53485377]
[1767347389245,0.30382362,3054.9,3052.9,0.31538429]